bitfinex-derivatives/quotes_BTCF0:USTF0_20250814
["timestamp","ask_amount","ask_price","bid_price","bid_amount"]
[1755149950258,0.22012579,122790.0,122780.0,1.32274322]
[1755149950659,0.24213579,122790.0,122780.0,1.32274322]
[1755149951766,0.24213579,122790.0,122780.0,0.922205]
[1755149951961,0.24213579,122790.0,122780.0,1.32274322]
[1755149952761,0.24213579,122790.0,122780.0,0.922205]
[1755149954867,0.24213579,122790.0,122780.0,1.68354322]
[1755149955263,0.24213579,122790.0,122780.0,1.283005]
[1755149955464,0.24213579,122790.0,122780.0,0.9222047]
[1755149955657,0.64267401,122790.0,122780.0,0.8407939]
[1755149955862,0.64267401,122790.0,122780.0,0.9218447]
[1755149956059,0.76267401,122790.0,122780.0,0.9218447]
[1755149956466,0.64267401,122790.0,122780.0,0.9218447]
[1755149957068,0.64467401,122790.0,122780.0,0.9208447]
[1755149957672,0.64367401,122790.0,122780.0,0.9218447]
[1755149957862,0.64367401,122790.0,122780.0,0.9208447]
[1755149958172,0.64567401,122790.0,122780.0,0.9218447]
[1755149958468,0.64567401,122790.0,122780.0,0.9218454]
[1755149958668,0.64367401,122790.0,122780.0,0.9208454]
[1755149958869,0.64467401,122790.0,122780.0,0.9207654]
[1755149960166,0.76467401,122790.0,122780.0,0.7663723]
[1755149960669,0.76467401,122790.0,122780.0,0.0137323]
[1755149961058,0.76467401,122790.0,122780.0,0.02646509]
[1755149961461,0.76467401,122790.0,122780.0,0.0522951]
[1755149961658,1.12547401,122790.0,122780.0,0.0264651]
[1755149961860,1.12547401,122790.0,122780.0,0.0137323]
[1755149962866,0.72493579,122790.0,122780.0,0.0137323]
[1755149963065,1.12547401,122790.0,122780.0,0.0137323]
[1755149965074,1.12547401,122790.0,122780.0,0.01373319]
[1755149967371,1.87791401,122790.0,122780.0,0.01373319]
[1755149967877,1.87791401,122790.0,122780.0,0.14774379]
[1755149968177,1.87791401,122790.0,122780.0,0.15572379]
[1755149969792,0.72493579,122790.0,122780.0,0.15572379]
[1755149969990,1.87787401,122790.0,122780.0,0.15572379]
[1755149970385,1.87787401,122790.0,122780.0,0.1557238]
[1755149970585,1.12547401,122790.0,122780.0,0.1427538]
[1755149970785,1.87783401,122790.0,122780.0,0.1427538]
[1755149970988,1.87783401,122790.0,122780.0,0.1209738]
[1755149971676,1.87483401,122790.0,122780.0,0.1199738]
[1755149971878,1.12947401,122790.0,122780.0,0.0137332]
[1755149972088,1.48125579,122790.0,122780.0,0.0137332]
[1755149972289,1.88179401,122790.0,122780.0,0.0137332]
[1755149972689,1.88079401,122790.0,122780.0,0.0137332]
[1755149973388,1.87879401,122790.0,122780.0,0.0127332]
[1755149973689,1.87779401,122790.0,122780.0,0.0127332]
[1755149974191,1.87679401,122790.0,122780.0,0.0127332]
[1755149975789,1.87822701,122790.0,122780.0,0.0127332]
[1755149976288,0.1032506,122780.0,122770.0,0.3048316]
[1755149976492,0.2229739,122780.0,122770.0,0.33029806]
[1755149977894,0.2239739,122780.0,122770.0,0.33029806]
[1755149978888,0.62451212,122780.0,122770.0,0.33129806]
[1755149979088,0.2239739,122780.0,122770.0,0.33129806]
[1755149979288,0.62451212,122780.0,122770.0,0.33129806]
[1755149980195,0.2239739,122780.0,122770.0,0.33129806]
[1755149980390,0.2010506,122780.0,122770.0,0.33129806]
[1755149980589,0.22397663,122780.0,122770.0,0.33129806]
[1755149980991,0.28987622,122780.0,122770.0,0.33129806]
[1755149981694,0.28987622,122780.0,122770.0,0.33129801]
[1755149984394,0.28987622,122780.0,122770.0,0.69209801]
[1755149985199,0.28987622,122780.0,122770.0,0.69209783]
[1755149986400,0.28987622,122780.0,122770.0,0.33129783]
[1755149986800,0.28987622,122780.0,122770.0,1.08333783]
[1755149987002,0.69041444,122780.0,122770.0,1.08333783]
[1755149987702,0.28987622,122780.0,122770.0,1.08333783]
[1755149988204,0.28987622,122780.0,122770.0,1.0833385]
[1755149989305,0.29015292,122780.0,122770.0,1.0833385]
[1755149990602,0.29015292,122780.0,122770.0,1.0832585]
[1755149991305,0.29015292,122780.0,122770.0,1.0832185]
[1755149991806,0.28915292,122780.0,122770.0,1.0822185]
[1755149992004,0.29215292,122780.0,122770.0,1.0832185]
[1755149992802,0.29115292,122780.0,122770.0,1.0822185]
[1755149993707,0.29115292,122780.0,122770.0,1.0821785]
[1755149994207,0.20974232,122780.0,122770.0,0.3302985]
[1755149994406,0.20974232,122780.0,122770.0,1.48271672]
[1755149995109,0.20974232,122780.0,122770.0,1.0821785]
[1755149995410,0.29115352,122780.0,122770.0,1.0821785]
[1755149997106,0.29015352,122780.0,122770.0,0.31756505]
[1755149997406,0.29015352,122780.0,122770.0,1.0830985]
[1755149997806,0.29015352,122780.0,122770.0,0.3312985]
[1755149998009,0.29015352,122780.0,122770.0,1.0830985]
[1755149998909,0.29215352,122780.0,122770.0,1.0830985]
[1755149999700,0.69169174,122780.0,122770.0,1.0820985]
[1755150000307,0.61028054,122780.0,122770.0,0.3302985]
[1755150000508,0.20874232,122780.0,122770.0,1.0820585]
[1755150000702,0.11361232,122780.0,122770.0,1.0820585]
[1755150001110,0.11461232,122780.0,122770.0,1.0820585]
[1755150001413,0.21197232,122780.0,122770.0,1.0820585]
[1755150002005,0.21197232,122780.0,122770.0,0.3302985]
[1755150002201,0.29338402,122780.0,122770.0,1.0820585]
[1755150003616,0.29238402,122780.0,122770.0,1.0820585]
[1755150003806,0.29138402,122780.0,122770.0,1.0830585]
[1755150004009,0.29238402,122780.0,122770.0,1.0830585]
[1755150004510,0.11361232,122780.0,122770.0,1.48351672]
[1755150004707,0.11493232,122780.0,122770.0,1.0829785]
[1755150004913,0.11493232,122780.0,122770.0,1.48351672]
[1755150005108,0.11493232,122780.0,122770.0,1.0829784]
[1755150005911,0.11493232,122780.0,122770.0,1.48351662]
[1755150006320,0.11693232,122780.0,122770.0,1.48351662]
[1755150006919,0.19834442,122780.0,122770.0,1.48351662]
[1755150007218,0.27077442,122780.0,122770.0,1.0829384]
[1755150007418,0.29370442,122780.0,122770.0,1.0829384]
[1755150007818,0.29370442,122780.0,122770.0,0.3312984]
[1755150008019,0.29370442,122780.0,122770.0,1.0829384]
[1755150009123,0.29470442,122780.0,122770.0,1.0829384]
[1755150009312,0.29670442,122780.0,122770.0,1.0829384]
[1755150009713,0.29570442,122780.0,122770.0,1.0829384]
[1755150010220,0.29470442,122780.0,122770.0,1.0819384]
[1755150010619,0.65550442,122780.0,122770.0,1.0819384]
[1755150011015,0.65550442,122780.0,122770.0,1.08193851]
[1755150013624,0.65550442,122780.0,122770.0,0.33029851]
[1755150013824,0.29470442,122780.0,122770.0,1.08185851]
[1755150014120,0.29470442,122780.0,122770.0,1.48239684]
[1755150014718,0.29470442,122780.0,122770.0,1.5334742]
[1755150014922,0.74632,122780.0,122770.0,1.5334742]
[1755150015818,0.29470442,122780.0,122770.0,1.5333942]
[1755150016019,0.29470442,122780.0,122770.0,1.5343942]
[1755150016020,0.29370442,122780.0,122770.0,1.5343942]
[1755150020531,0.29370442,122780.0,122770.0,1.5343142]
[1755150020829,0.65450442,122780.0,122770.0,1.5343142]
[1755150021530,0.65450442,122780.0,122770.0,1.08269862]
[1755150021724,0.65450442,122780.0,122770.0,1.5343142]
[1755150021923,0.63130169,122780.0,122770.0,1.5343142]
[1755150022131,0.654514,122780.0,122770.0,1.5343142]
[1755150022330,0.656514,122780.0,122770.0,1.5343142]
[1755150023024,0.655514,122780.0,122770.0,1.5343142]
[1755150023233,0.642784,122780.0,122770.0,1.5342742]
[1755150023730,0.67211276,122780.0,122770.0,1.5332342]
[1755150023928,0.67311276,122780.0,122770.0,1.5332342]
[1755150024329,1.18594834,122780.0,122770.0,0.02546702]
[1755150024632,1.42485276,122780.0,122770.0,0.02546702]
[1755150024822,1.34716434,122780.0,122770.0,0.02546702]
[1755150025027,0.1297459,122760.0,122750.0,1.47390108]
[1755150025228,0.1297459,122760.0,122750.0,1.50999108]
[1755150025229,0.58473821,122760.0,122750.0,1.50999108]
[1755150025431,0.58473821,122760.0,122750.0,1.34712608]
[1755150025621,1.03635379,122760.0,122750.0,1.34708608]
[1755150026634,0.58473821,122760.0,122750.0,0.8954705]
[1755150026836,0.58573821,122760.0,122750.0,0.8974705]
[1755150027336,0.58573821,122760.0,122750.0,0.81604]
[1755150027537,0.58573821,122760.0,122750.0,0.8974726]
[1755150027737,0.60397571,122760.0,122750.0,0.8924826]
[1755150027939,1.00559602,122760.0,122750.0,0.81105]
[1755150028238,1.00559602,122760.0,122750.0,0.8924826]
[1755150028441,1.00759602,122760.0,122750.0,0.8924826]
[1755150028634,1.00759602,122760.0,122750.0,0.81105]
[1755150028938,1.00759602,122760.0,122750.0,0.81604]
[1755150029139,1.00759602,122760.0,122750.0,0.897472]
[1755150029330,1.00759602,122760.0,122750.0,0.145312]
[1755150029526,0.60597571,122760.0,122750.0,0.145312]
[1755150029938,0.60597511,122760.0,122750.0,0.54693231]
[1755150030337,0.60597511,122760.0,122750.0,1.29901231]
[1755150030526,0.60597511,122760.0,122750.0,0.54693231]
[1755150030527,0.52454981,122760.0,122750.0,0.54693231]
[1755150030731,0.47635981,122760.0,122750.0,1.29909231]
[1755150031439,0.11555981,122760.0,122750.0,1.65989231]
[1755150031642,0.09233981,122760.0,122750.0,1.65989231]
[1755150031835,0.06723981,122760.0,122750.0,0.90773231]
[1755150032037,0.04444981,122760.0,122750.0,1.65989231]
[1755150032340,0.24517511,122760.0,122750.0,0.50618353]
[1755150032540,0.24517511,122760.0,122750.0,1.25842353]
[1755150033231,0.24517511,122760.0,122750.0,0.50618353]
[1755150033636,0.24517511,122760.0,122750.0,1.25838353]
[1755150034343,0.24517511,122760.0,122750.0,1.25830353]
[1755150035245,0.24517511,122760.0,122750.0,0.50618353]
[1755150035441,0.24517511,122760.0,122750.0,1.25830353]
[1755150037149,0.24517511,122760.0,122750.0,1.28377357]
[1755150038540,0.64679542,122760.0,122750.0,1.27878357]
[1755150038847,1.00759542,122760.0,122750.0,0.92297357]
[1755150039045,1.00759542,122760.0,122750.0,0.92297307]
[1755150039243,0.60597511,122760.0,122750.0,0.92297307]
[1755150039643,1.00759542,122760.0,122750.0,0.92297307]
[1755150039943,0.24517511,122760.0,122750.0,0.92297307]
[1755150040538,0.14866511,122760.0,122750.0,0.57247338]
[1755150040847,0.14866511,122760.0,122750.0,1.32403338]
[1755150041151,0.14866511,122760.0,122750.0,0.93327338]
[1755150041351,0.14866511,122760.0,122750.0,1.68475338]
[1755150043651,0.14866511,122760.0,122750.0,1.32395338]
[1755150043954,0.19698511,122760.0,122750.0,1.32395336]
[1755150044155,0.75679542,122760.0,122750.0,0.84090155]
[1755150044357,0.64679542,122760.0,122750.0,0.84090155]
[1755150044856,0.24517511,122760.0,122750.0,0.92233285]
[1755150045156,0.60597511,122760.0,122750.0,0.92233285]
[1755150045659,0.60597511,122760.0,122750.0,0.84090155]
[1755150046355,0.60597511,122760.0,122750.0,0.92233315]
[1755150046657,0.60597511,122760.0,122750.0,0.84090155]
[1755150046859,0.60597511,122760.0,122750.0,0.92233275]
[1755150047359,0.60597511,122760.0,122750.0,0.17085275]
[1755150047554,0.60597511,122760.0,122750.0,0.92233275]
[1755150047957,0.60597511,122760.0,122750.0,0.17085275]
[1755150048155,0.60597511,122760.0,122750.0,0.92233275]
[1755150052162,1.00759542,122760.0,122750.0,0.82793155]
[1755150052665,1.00759542,122760.0,122750.0,0.84090155]
[1755150052857,1.00759542,122760.0,122750.0,0.84090265]
[1755150053660,1.00759542,122760.0,122750.0,0.08942265]
[1755150055766,1.00759542,122760.0,122750.0,0.17085385]
[1755150056769,1.00759542,122760.0,122750.0,0.08942265]
[1755150058264,1.00759542,122760.0,122750.0,0.16586385]
[1755150058464,1.00759542,122760.0,122750.0,0.17085385]
[1755150060767,0.60597511,122760.0,122750.0,0.17085385]
[1755150061066,1.00759542,122760.0,122750.0,0.17085385]
[1755150062465,0.60597511,122760.0,122750.0,0.17085385]
[1755150062657,1.00759542,122760.0,122750.0,0.17085385]
[1755150062862,1.00759542,122760.0,122750.0,0.08942265]
[1755150063062,0.60597511,122760.0,122750.0,0.08942265]
[1755150063765,0.60597511,122760.0,122750.0,0.17085385]
[1755150063968,0.60597511,122760.0,122750.0,0.1708541]
[1755150065370,0.60597511,122760.0,122750.0,0.0275429]
[1755150065559,1.35737511,122760.0,122750.0,0.1395241]
[1755150065764,1.35737511,122760.0,122750.0,0.1703441]
[1755150066366,0.58773761,122760.0,122750.0,1.32336441]
[1755150066767,0.51632761,122760.0,122750.0,1.32336441]
[1755150066968,0.20246761,122760.0,122750.0,1.28254428]
[1755150067165,0.20246761,122760.0,122750.0,1.68416459]
[1755150067580,0.22469761,122760.0,122750.0,1.68416459]
[1755150067781,0.22469761,122760.0,122750.0,1.32336459]
[1755150068082,0.58549761,122760.0,122750.0,0.92174428]
[1755150068779,0.22469761,122760.0,122750.0,0.92174428]
[1755150068979,0.58549761,122760.0,122750.0,0.92174428]
[1755150069281,0.22469761,122760.0,122750.0,0.92174428]
[1755150069579,0.58549761,122760.0,122750.0,0.92170428]
[1755150071274,0.58549761,122760.0,122750.0,0.84027308]
[1755150071984,0.58549761,122760.0,122750.0,0.92170438]
[1755150074380,0.22469761,122760.0,122750.0,0.92170438]
[1755150074584,0.22469761,122760.0,122750.0,1.32332469]
[1755150075882,0.22469761,122760.0,122750.0,1.32332413]
[1755150080089,0.58549761,122760.0,122750.0,1.24189283]
[1755150080386,0.58549761,122760.0,122750.0,0.84027252]
[1755150080890,0.60334229,122760.0,122750.0,0.08392252]
[1755150081092,0.60334229,122760.0,122750.0,0.08891252]
[1755150085494,1.0049626,122760.0,122750.0,0.08891345]
[1755150085695,1.0049626,122760.0,122750.0,0.02754345]
[1755150088093,1.0649626,122760.0,122750.0,0.02754345]
[1755150088493,1.0049626,122760.0,122750.0,0.02754345]
[1755150089495,1.0049626,122760.0,122750.0,0.05337345]
[1755150089698,1.0049626,122760.0,122750.0,0.13480465]
[1755150090598,1.7561626,122760.0,122750.0,0.13480465]
[1755150090782,1.7561626,122760.0,122750.0,0.13480467]
[1755150091190,1.35454229,122760.0,122750.0,0.13480467]
[1755150091493,1.0049626,122760.0,122750.0,0.13480467]
[1755150091689,0.60334229,122760.0,122750.0,0.16300467]
[1755150091884,0.60334229,122760.0,122750.0,0.17098467]
[1755150094989,0.60334229,122760.0,122750.0,0.57260498]
[1755150095697,0.60334229,122760.0,122750.0,0.17098467]
[1755150096299,0.24254229,122760.0,122750.0,0.17098467]
[1755150097401,0.24254229,122760.0,122750.0,0.16599467]
[1755150097596,0.24254229,122760.0,122750.0,0.17098467]
[1755150098593,0.69432938,122760.0,122750.0,0.62277176]
[1755150098798,0.24254229,122760.0,122750.0,0.62277176]
[1755150099000,0.69432938,122760.0,122750.0,0.62277176]
[1755150100003,0.24254229,122760.0,122750.0,0.62277176]
[1755150100501,0.24254229,122760.0,122750.0,0.98357176]
[1755150100702,0.24254229,122760.0,122750.0,0.53178467]
[1755150100903,0.24254229,122760.0,122750.0,0.98357176]
[1755150101908,0.24254229,122760.0,122750.0,0.62277176]
[1755150102108,0.24254229,122760.0,122750.0,0.98357176]
[1755150102509,0.69285938,122760.0,122750.0,0.92156176]
[1755150102809,0.69285938,122760.0,122750.0,0.92156087]
[1755150103005,0.69285938,122760.0,122750.0,0.49560378]
[1755150103307,0.69285938,122760.0,122750.0,0.97559087]
[1755150104608,0.24107229,122760.0,122750.0,0.52380378]
[1755150105421,0.24107229,122760.0,122750.0,0.53178378]
[1755150106514,0.24105585,122760.0,122750.0,0.93338551]
[1755150107819,0.24105585,122760.0,122750.0,0.57258551]
[1755150108723,0.24105585,122760.0,122750.0,0.93338551]
[1755150109218,0.24105585,122760.0,122750.0,0.57258551]
[1755150110422,0.24105585,122760.0,122750.0,0.57251398]
[1755150111624,0.24105585,122760.0,122750.0,0.57251314]
[1755150111824,0.24105585,122760.0,122750.0,0.93331314]
[1755150112729,0.24105585,122760.0,122750.0,0.93338467]
[1755150113527,0.24105585,122760.0,122750.0,0.57258467]
[1755150113924,0.24105585,122760.0,122750.0,0.93338467]
[1755150115430,0.24105585,122760.0,122750.0,0.57258467]
[1755150115631,0.24105585,122760.0,122750.0,0.93338467]
[1755150116428,0.23805585,122760.0,122750.0,0.93138467]
[1755150116625,0.23805585,122760.0,122750.0,0.93238467]
[1755150116626,0.24305585,122760.0,122750.0,0.93238467]
[1755150117722,0.24205585,122760.0,122750.0,0.93238467]
[1755150118029,0.24205585,122760.0,122750.0,0.53078294]
[1755150118233,0.24105585,122760.0,122750.0,0.93238467]
[1755150120323,0.24105585,122760.0,122750.0,0.53078294]
[1755150120529,0.60085585,122760.0,122750.0,0.91978238]
[1755150120732,0.60285585,122760.0,122750.0,0.16998238]
[1755150120929,0.60285585,122760.0,122750.0,0.92074238]
[1755150121626,0.60385585,122760.0,122750.0,0.92074238]
[1755150122430,0.59985585,122760.0,122750.0,0.91974238]
[1755150122731,0.60185585,122760.0,122750.0,0.92074238]
[1755150123430,0.60085585,122760.0,122750.0,0.92074238]
[1755150123630,0.60085585,122760.0,122750.0,0.92070238]
[1755150126134,0.60085585,122760.0,122750.0,0.10797238]
[1755150126334,1.00245758,122760.0,122750.0,0.05437188]
[1755150126531,1.00245758,122760.0,122750.0,0.02854188]
[1755150126726,1.50467307,122760.0,122750.0,0.02854188]
[1755150127032,1.62473499,122760.0,122750.0,0.02854188]
[1755150127227,2.37537499,122760.0,122750.0,0.01580674]
[1755150127433,0.2009872,122740.0,122730.0,0.00010516]
[1755150127630,0.22418307,122740.0,122730.0,0.01284281]
[1755150127830,0.67609168,122740.0,122730.0,0.01284281]
[1755150128735,0.62597561,122740.0,122730.0,0.01284281]
[1755150129126,0.98777561,122740.0,122730.0,0.01584281]
[1755150129532,0.58698307,122740.0,122730.0,0.01684281]
[1755150129738,0.58698307,122740.0,122730.0,0.09308281]
[1755150130735,0.58698307,122740.0,122730.0,0.04267281]
[1755150131234,0.58698307,122740.0,122730.0,0.00410516]
[1755150131438,0.58698307,122740.0,122730.0,0.01684311]
[1755150132138,0.59516072,122740.0,122730.0,0.01684311]
[1755150132438,0.66516072,122740.0,122730.0,0.00410516]
[1755150132839,0.59516072,122740.0,122730.0,0.08554896]
[1755150133131,0.59516072,122740.0,122730.0,0.11137896]
[1755150133336,0.59501991,122740.0,122730.0,0.11137896]
[1755150133533,0.59501991,122740.0,122730.0,0.13096896]
[1755150133741,0.59501991,122740.0,122730.0,0.16178896]
[1755150133937,0.23421991,122740.0,122730.0,0.5635815]
[1755150136740,0.59501991,122740.0,122730.0,0.07535516]
[1755150136937,0.71501991,122740.0,122730.0,0.04566516]
[1755150137142,0.71501991,122740.0,122730.0,0.00410516]
[1755150139347,0.71501991,122740.0,122730.0,0.01684361]
[1755150139650,1.11681245,122740.0,122730.0,0.01684361]
[1755150139849,1.11688732,122740.0,122730.0,0.01684361]
[1755150141253,1.86732732,122740.0,122730.0,0.01684361]
[1755150143546,0.2010004,122720.0,122710.0,0.001]
[1755150143752,0.625848,122720.0,122710.0,0.0137393]
[1755150144254,0.22405546,122720.0,122710.0,0.0137393]
[1755150144746,0.22405546,122720.0,122710.0,0.0951964]
[1755150144951,0.22405546,122720.0,122710.0,0.58516964]
[1755150145355,0.22405546,122720.0,122710.0,0.56023964]
[1755150145541,0.34405546,122720.0,122710.0,0.47878254]
[1755150146048,0.22405546,122720.0,122710.0,0.56023964]
[1755150146350,0.22405546,122720.0,122710.0,0.17118671]
[1755150147153,0.7049276,122720.0,122710.0,0.001]
[1755150147845,1.87556024,122720.0,122710.0,0.001]
[1755150148448,1.12520024,122720.0,122710.0,0.01374025]
[1755150148645,1.4737677,122720.0,122710.0,0.001]
[1755150149442,1.4737677,122720.0,122710.0,0.02683]
[1755150149651,0.70035264,122720.0,122710.0,0.02683]
[1755150149842,0.70035264,122720.0,122710.0,0.59791017]
[1755150149843,1.47369005,122720.0,122710.0,0.59791017]
[1755150150040,1.47369005,122720.0,122710.0,0.57298017]
[1755150150041,0.60333005,122720.0,122710.0,0.57298017]
[1755150150243,0.58484995,122720.0,122710.0,0.59791017]
[1755150152254,0.58684995,122720.0,122710.0,0.59791017]
[1755150152654,0.58784995,122720.0,122710.0,0.59791017]
[1755150152956,0.58684995,122720.0,122710.0,0.59791017]
[1755150153254,0.58684995,122720.0,122710.0,0.59790987]
[1755150153439,0.09825955,122720.0,122710.0,1.34822987]
[1755150153646,0.22591995,122720.0,122710.0,0.94643733]
[1755150153852,0.22591995,122720.0,122710.0,1.34822987]
[1755150155248,0.22591995,122720.0,122710.0,1.34822938]
[1755150155456,0.22591995,122720.0,122710.0,0.20885658]
[1755150156045,0.22591995,122720.0,122710.0,0.04252948]
[1755150156445,0.22591995,122720.0,122710.0,0.06835948]
[1755150156641,0.33591995,122720.0,122710.0,0.06835948]
[1755150156852,0.69671995,122720.0,122710.0,0.02647948]
[1755150157454,0.58671995,122720.0,122710.0,0.05230948]
[1755150157756,0.58671995,122720.0,122710.0,0.07334948]
[1755150157949,0.58671995,122720.0,122710.0,0.18392618]
[1755150158155,0.22591995,122720.0,122710.0,0.20885618]
[1755150159057,0.22591995,122720.0,122710.0,0.61064872]
[1755150160656,0.22591995,122720.0,122710.0,1.36084872]
[1755150161461,0.22591995,122720.0,122710.0,0.61064872]
[1755150161659,0.22591995,122720.0,122710.0,1.36084872]
[1755150161862,0.22591995,122720.0,122710.0,1.33591872]
[1755150162259,0.22591995,122720.0,122710.0,0.61064872]
[1755150166360,0.15483995,122720.0,122710.0,0.58571872]
[1755150166562,0.22591995,122720.0,122710.0,0.61064872]
[1755150167162,0.22591995,122720.0,122710.0,0.61064871]
[1755150168064,0.22591995,122720.0,122710.0,0.6106487]
[1755150168768,0.22591995,122720.0,122710.0,0.10793616]
[1755150169067,0.22591995,122720.0,122710.0,0.18392616]
[1755150169458,0.22591995,122720.0,122710.0,0.20885616]
[1755150170860,0.22591995,122720.0,122710.0,0.17893616]
[1755150171060,0.22591995,122720.0,122710.0,0.20885616]
[1755150171262,0.22591995,122720.0,122710.0,0.6106487]
[1755150171566,0.22591995,122720.0,122710.0,0.20885616]
[1755150171766,0.22591995,122720.0,122710.0,0.6106487]
[1755150172560,0.22591995,122720.0,122710.0,0.20885616]
[1755150173766,0.22591995,122720.0,122710.0,0.12739946]
[1755150174163,0.34591995,122720.0,122710.0,0.09747946]
[1755150174570,0.34591995,122720.0,122710.0,0.08949946]
[1755150175076,0.34591995,122720.0,122710.0,0.09448946]
[1755150176068,0.34591995,122720.0,122710.0,0.08949946]
[1755150176870,0.34545634,122720.0,122710.0,0.08949946]
[1755150177070,0.34545634,122720.0,122710.0,0.17095616]
[1755150177271,0.34545634,122720.0,122710.0,0.08949946]
[1755150178165,0.22545634,122720.0,122710.0,0.17095616]
[1755150178370,0.22545634,122720.0,122710.0,0.18392616]
[1755150178873,0.22545634,122720.0,122710.0,0.10246962]
[1755150179566,0.22545634,122720.0,122710.0,0.02647962]
[1755150179969,0.75724888,122720.0,122710.0,0.02647962]
[1755150181176,0.75724888,122720.0,122710.0,0.02647978]
[1755150181377,1.50700888,122720.0,122710.0,0.02647978]
[1755150181770,1.86780888,122720.0,122710.0,0.02647978]
[1755150181966,1.88600185,122720.0,122710.0,0.02647978]
[1755150182979,1.88700185,122720.0,122710.0,0.02647978]
[1755150183178,1.88700185,122720.0,122710.0,0.01373989]
[1755150183587,1.88800185,122720.0,122710.0,0.01373989]
[1755150185087,0.2005967,122710.0,122700.0,0.001]
[1755150185286,1.10570304,122710.0,122700.0,0.01374107]
[1755150185787,1.17149686,122710.0,122700.0,0.01374107]
[1755150186691,0.76970432,122710.0,122700.0,0.01374107]
[1755150186885,0.77170432,122710.0,122700.0,0.01374107]
[1755150187088,0.77170432,122710.0,122700.0,0.09412107]
[1755150187384,1.52134432,122710.0,122700.0,0.12244107]
[1755150188291,1.52234432,122710.0,122700.0,0.1097]
[1755150188490,1.52234432,122710.0,122700.0,0.51149254]
[1755150188689,1.52234432,122710.0,122700.0,0.1097]
[1755150189690,1.52234432,122710.0,122700.0,0.001]
[1755150189897,1.92405686,122710.0,122700.0,0.01374115]
[1755150190282,1.92405686,122710.0,122700.0,0.001]
[1755150191186,1.17449686,122710.0,122700.0,0.001]
[1755150191390,1.92405686,122710.0,122700.0,0.001]
[1755150192794,1.17449686,122710.0,122700.0,0.001]
[1755150192993,1.92401686,122710.0,122700.0,0.001]
[1755150193296,0.77270432,122710.0,122700.0,0.001]
[1755150193599,1.52222432,122710.0,122700.0,0.0734]
[1755150194297,0.77270432,122710.0,122700.0,0.08614152]
[1755150194598,0.77270432,122710.0,122700.0,0.14079462]
[1755150194797,0.77270432,122710.0,122700.0,0.20390462]
[1755150195001,0.77270432,122710.0,122700.0,0.1911631]
[1755150195394,0.77270432,122710.0,122700.0,0.59295564]
[1755150195594,0.77270432,122710.0,122700.0,0.1911631]
[1755150196992,0.77270432,122710.0,122700.0,0.20390456]
[1755150197396,0.77270432,122710.0,122700.0,0.12244146]
[1755150197797,0.74024432,122710.0,122700.0,0.20390456]
[1755150198100,0.29190432,122710.0,122700.0,0.6056971]
[1755150198989,0.22226432,122710.0,122700.0,0.6184379]
[1755150199201,0.29190432,122710.0,122700.0,0.9792379]
[1755150199790,0.21044762,122710.0,122700.0,0.9792379]
[1755150200001,0.18209402,122710.0,122700.0,0.9792379]
[1755150200201,0.17276402,122710.0,122700.0,1.7286379]
[1755150200398,0.19681402,122710.0,122700.0,0.9792379]
[1755150200599,0.19681402,122710.0,122700.0,1.7286379]
[1755150200996,0.19681402,122710.0,122700.0,1.7285979]
[1755150201195,0.20614402,122710.0,122700.0,0.9792379]
[1755150201395,0.26969402,122710.0,122700.0,1.7285979]
[1755150201598,0.29190402,122710.0,122700.0,1.7285979]
[1755150201793,0.29190402,122710.0,122700.0,1.7285579]
[1755150201999,0.29190402,122710.0,122700.0,0.97923686]
[1755150202196,0.07276402,122710.0,122700.0,1.72855686]
[1755150202705,0.19190402,122710.0,122700.0,1.72855686]
[1755150203198,0.09681402,122710.0,122700.0,1.72855686]
[1755150204204,0.25715075,122710.0,122700.0,1.72855686]
[1755150206104,0.25715075,122710.0,122700.0,1.32676252]
[1755150206304,0.25715075,122710.0,122700.0,1.72855506]
[1755150206703,0.18438673,122710.0,122700.0,1.72855506]
[1755150206903,0.26584313,122710.0,122700.0,0.97923506]
[1755150207104,0.26584313,122710.0,122700.0,1.32664252]
[1755150207410,0.26584313,122710.0,122700.0,1.72843506]
[1755150207898,0.26584313,122710.0,122700.0,1.71569535]
[1755150208098,0.26584313,122710.0,122700.0,1.32664253]
[1755150208302,0.26584313,122710.0,122700.0,1.72843507]
[1755150208810,0.26584313,122710.0,122700.0,1.32664253]
[1755150209011,0.26584313,122710.0,122700.0,1.72843507]
[1755150210201,0.26584313,122710.0,122700.0,1.32664253]
[1755150210405,0.26584313,122710.0,122700.0,0.57744253]
[1755150210704,0.76763567,122710.0,122700.0,0.54137282]
[1755150210904,0.76763567,122710.0,122700.0,1.3134529]
[1755150211410,0.36584313,122710.0,122700.0,1.3134529]
[1755150211811,0.26584313,122710.0,122700.0,1.3134529]
[1755150212111,0.26584313,122710.0,122700.0,1.71524544]
[1755150212406,0.15674313,122710.0,122700.0,1.71524544]
[1755150212610,0.21915313,122710.0,122700.0,1.3134529]
[1755150212810,0.26688313,122710.0,122700.0,1.71524544]
[1755150213206,0.19795313,122710.0,122700.0,1.71524544]
[1755150213510,0.18171313,122710.0,122700.0,1.71524544]
[1755150214211,0.18171313,122710.0,122700.0,1.3134529]
[1755150214411,0.24568313,122710.0,122700.0,1.71524544]
[1755150214712,0.26688313,122710.0,122700.0,1.71524544]
[1755150215111,0.26688313,122710.0,122700.0,1.3134529]
[1755150215410,0.26688313,122710.0,122700.0,1.71524544]
[1755150217612,0.26688313,122710.0,122700.0,1.3134529]
[1755150217812,0.26688313,122710.0,122700.0,1.71524544]
[1755150218013,0.26688313,122710.0,122700.0,1.72798539]
[1755150218708,0.26688313,122710.0,122700.0,1.36718539]
[1755150218908,0.26688313,122710.0,122700.0,1.36714539]
[1755150221312,0.26688313,122710.0,122700.0,0.9526129]
[1755150221709,0.26688313,122710.0,122700.0,0.8711498]
[1755150222108,0.26688313,122710.0,122700.0,0.1221098]
[1755150222306,0.26688313,122710.0,122700.0,0.88389038]
[1755150222506,0.78867567,122710.0,122700.0,0.0137398]
[1755150222710,1.14947567,122710.0,122700.0,0.8688698]
[1755150223110,1.14947567,122710.0,122700.0,0.0517698]
[1755150223311,1.14947567,122710.0,122700.0,0.0137398]
[1755150226416,1.16751303,122710.0,122700.0,0.01374175]
[1755150226616,0.76572049,122710.0,122700.0,0.01374175]
[1755150226819,1.16751303,122710.0,122700.0,0.01374175]
[1755150229416,0.76572049,122710.0,122700.0,0.01374175]
[1755150229618,1.16751303,122710.0,122700.0,0.01374175]
[1755150234129,1.17851303,122710.0,122700.0,0.01374175]
[1755150234828,1.17451303,122710.0,122700.0,0.01374175]
[1755150235421,1.17351303,122710.0,122700.0,0.01374175]
[1755150236329,1.17051303,122710.0,122700.0,0.01374175]
[1755150236521,1.17251303,122710.0,122700.0,0.01374175]
[1755150237837,1.17261759,122710.0,122700.0,0.01374175]
[1755150239736,1.19503085,122710.0,122700.0,0.01374175]
[1755150240529,0.1602596,122690.0,122680.0,0.001]
[1755150240738,0.74335675,122690.0,122680.0,0.07337]
[1755150240933,1.10415675,122690.0,122680.0,0.08634]
[1755150241338,1.10415675,122690.0,122680.0,0.11047]
[1755150241534,1.10415675,122690.0,122680.0,0.08634]
[1755150241734,1.10415675,122690.0,122680.0,0.08135]
[1755150241930,1.10515675,122690.0,122680.0,0.08135]